fUST/lending_fUST_20240919
["ID","MTS","AMOUNT","RATE_DAILY","PERIOD"]
[338521165,1726714947891,500.0,0.00024,120]
[338521166,1726714949720,500.0,0.00024,120]
[338521167,1726714951020,1536.2,0.00024,120]
[338521168,1726714951438,500.0,0.00024,120]
[338521169,1726714952792,500.36185874,0.00024,120]
[338521170,1726714952862,500.0,0.00024,120]
[338521171,1726714954717,1347.04,0.00024,120]
[338521172,1726714955626,500.0,0.00024,120]
[338521173,1726714956068,500.0,0.00024,120]
[338521174,1726714958570,1198.65,0.00024,120]
[338521175,1726714959055,500.0,0.00024,120]
[338521176,1726714959617,500.0,0.00024,120]
[338521177,1726714959825,727.61,0.00024,120]
[338521178,1726714961459,500.0,0.00024,120]
[338521179,1726714962165,500.0,0.00024,120]
[338521180,1726714962787,500.0,0.00024,120]
[338521181,1726714963045,500.0,0.00024,120]
[338521182,1726714964065,500.0,0.00024,120]
[338521183,1726714964302,500.0,0.00024,120]
[338521184,1726714964467,500.0,0.00024,120]
[338521185,1726714965124,769.22,0.00024,120]
[338521186,1726714965817,500.0,0.00024,120]
[338521187,1726714966410,500.0,0.00024,120]
[338521188,1726714966584,500.0,0.00024,120]
[338521189,1726714966717,500.0,0.00024,120]
[338521190,1726714966813,1520.94,0.00024,120]
[338521191,1726714966948,500.0,0.00024,120]
[338521192,1726714967006,500.0,0.00024,120]
[338521193,1726714967066,378.38465828,0.00024,120]
[338521194,1726714967243,500.0,0.00024,120]
[338521195,1726714968557,1245.8,0.00024,120]
[338521196,1726714968988,500.0,0.00024,120]
[338521197,1726714970545,999.36,0.00024,120]
[338521198,1726714971152,500.0,0.00024,120]
[338521199,1726714972260,500.0,0.00024,120]
[338521200,1726714972532,500.0,0.00024,120]
[338521201,1726714972690,500.0,0.00024,120]
[338521202,1726714973339,755.69,0.00024,120]
[338521203,1726714973653,500.0,0.00024,120]
[338521204,1726714974726,500.0,0.00024,120]
[338521205,1726714974786,569.0,0.00024,120]
[338521206,1726714975507,512.94440353,0.00024,120]
[338521207,1726714975574,1243.45,0.00024,120]
[338521208,1726714975739,984.64,0.00024,120]
[338521209,1726714976655,500.0,0.00024,120]
[338521210,1726714977054,500.0,0.00024,120]
[338521211,1726714977543,2713.45,0.00024,120]
[338521212,1726714978329,500.0,0.00024,120]
[338521213,1726714978533,759.0,0.00024,120]
[338521214,1726714978838,560.18,0.00024,120]
[338521215,1726714979035,500.0,0.00024,120]
[338521216,1726714980861,500.0,0.00024,120]
[338521217,1726714981651,681.28,0.00024,120]
[338521218,1726714983152,681.12,0.00024,120]
[338521219,1726714983220,500.0,0.00024,120]
[338521220,1726714983703,514.19135018,0.00024,120]
[338521221,1726714984649,500.0,0.00024,120]
[338521222,1726714984783,500.0,0.00024,120]
[338521223,1726714984846,1179.0,0.00024,120]
[338521224,1726714985127,1255.24,0.00024,120]
[338521225,1726714985567,500.0,0.00024,120]
[338521226,1726714988172,1413.89,0.00024,120]
[338521227,1726714989099,1687.26,0.00024,120]
[338521228,1726714989904,1001.43,0.00024,120]
[338521229,1726714990215,1116.45,0.00024,120]
[338521230,1726714990713,669.29,0.00024,120]
[338521231,1726714991076,1177.91,0.00024,120]
[338521232,1726714991368,500.0,0.00024,120]
[338521233,1726714991508,532.24875478,0.00024,120]
[338521234,1726714992516,1016.36,0.00024,120]
[338521235,1726714992575,2111.49,0.00024,120]
[338521236,1726714993722,500.0,0.00024,120]
[338521237,1726714993805,3214.23,0.00024,120]
[338521238,1726714997509,740.13,0.00024,120]
[338521239,1726714997804,1679.91,0.00024,120]
[338521240,1726714998014,500.0,0.00024,120]
[338521241,1726714999535,500.0,0.00024,120]
[338521242,1726715001298,500.0,0.00024,120]
[338521243,1726715001356,500.0,0.00024,120]
[338521244,1726715001550,500.0,0.00024,120]
[338521245,1726715002007,500.0,0.00024,120]
[338521246,1726715002272,500.0,0.00024,120]
[338521247,1726715002870,500.0,0.00024,120]
[338521248,1726715003138,500.0,0.00024,120]
[338521249,1726715003232,914.95,0.00024,120]
[338521250,1726715003409,500.0,0.00024,120]
[338521251,1726715003668,500.0,0.00024,120]
[338521252,1726715003816,3549.14,0.00024,120]
[338521253,1726715003913,500.0,0.00024,120]
[338521254,1726715004095,500.0,0.00024,120]
[338521255,1726715004173,500.0,0.00024,120]
[338521256,1726715004252,1108.05,0.00024,120]
[338521257,1726715004454,613.76910083,0.00024,120]
[338521258,1726715004510,500.0,0.00024,120]
[338521259,1726715004711,579.6579515,0.00024,120]
[338521260,1726715005760,500.0,0.00024,120]
[338521261,1726715006831,1033.91,0.00024,120]
[338521262,1726715008134,1016.2,0.00024,120]
[338521263,1726715008214,704.11,0.00024,120]
[338521264,1726715009336,1005.68,0.00024,120]
[338521265,1726715011236,500.0,0.00024,120]
[338521266,1726715011523,500.0,0.00024,120]
[338521267,1726715012238,614.46,0.00024,120]
[338521268,1726715015086,500.0,0.00024,120]
[338521269,1726715015560,4211.46,0.00024,120]
[338521270,1726715015985,812.57,0.00024,120]
[338521271,1726715017244,500.0,0.00024,120]
[338521272,1726715017546,1015.42,0.00024,120]
[338521273,1726715019427,364.29987954,0.00024,120]
[338521274,1726715019793,500.0,0.00024,120]
[338521275,1726715021185,500.0,0.00024,120]
[338521276,1726715021928,2467.47,0.00024,120]
[338521277,1726715022248,500.0,0.00024,120]
[338521278,1726715023239,602.36,0.00024,120]
[338521279,1726715023543,500.0,0.00024,120]
[338521280,1726715024228,1135.8,0.00024,120]
[338521281,1726715025276,500.0,0.00024,120]
[338521282,1726715025641,328.88764172,0.00024,120]
[338521283,1726715025987,801.23,0.00024,120]
[338521284,1726715026764,2285.75,0.00024,120]
[338521285,1726715027252,500.0,0.00024,120]
[338521286,1726715027539,811.18,0.00024,120]
[338521287,1726715027875,610.61,0.00024,120]
[338521288,1726715029254,603.0452804,0.00024,120]
[338521289,1726715029496,500.0,0.00024,120]
[338521290,1726715030262,539.24,0.00024,120]
[338521291,1726715032269,500.0,0.00024,120]
[338521292,1726715032328,500.0,0.00024,120]
[338521293,1726715034203,500.0,0.00024,120]
[338521294,1726715034686,1083.56,0.00024,120]
[338521295,1726715034978,500.0,0.00024,120]
[338521296,1726715035476,652.72,0.00024,120]
[338521297,1726715035977,740.28,0.00024,120]
[338521298,1726715036664,1587.49,0.00024,120]
[338521299,1726715037802,1523.69,0.00024,120]
[338521300,1726715038559,1141.7,0.00024,120]
[338521301,1726715038615,500.0,0.00024,120]
[338521302,1726715038724,500.0,0.00024,120]
[338521303,1726715040066,500.0,0.00024,120]
[338521304,1726715040554,1356.92,0.00024,120]
[338521305,1726715040832,500.0,0.00024,120]
[338521306,1726715042706,1116.35,0.00024,120]
[338521307,1726715042871,1239.54,0.00024,120]
[338521308,1726715044539,500.0,0.00024,120]
[338521309,1726715044613,500.0,0.00024,120]
[338521310,1726715045186,637.14,0.00024,120]
[338521311,1726715045263,435.50643388,0.00024,120]
[338521312,1726715045339,1398.14,0.00024,120]
[338521313,1726715045672,500.0,0.00024,120]
[338521314,1726715045753,500.0,0.00024,120]
[338521315,1726715052033,500.0,0.00024,120]
[338521316,1726715053173,593.28,0.00024,120]
[338521317,1726715053731,500.0,0.00024,120]
[338521318,1726715053863,500.0,0.00024,120]
[338521319,1726715054105,713.56,0.00024,120]
[338521320,1726715054358,500.0,0.00024,120]
[338521321,1726715054795,1128.97,0.00024,120]
[338521322,1726715054867,500.0,0.00024,120]
[338521323,1726715055269,956.44,0.00024,120]
[338521324,1726715055512,2913.57,0.00024,120]
[338521325,1726715055603,1212.5,0.00024,120]
[338521326,1726715055794,500.0,0.00024,120]
[338521327,1726715056180,1229.1,0.00024,120]
[338521328,1726715058213,500.0,0.00024,120]
[338521329,1726715058474,702.18,0.00024,120]
[338521330,1726715060244,500.0,0.00024,120]
[338521331,1726715060332,523.58,0.00024,120]
[338521332,1726715061833,500.0,0.00024,120]
[338521333,1726715063261,500.0,0.00024,120]
[338521334,1726715063319,963.89,0.00024,120]
[338521335,1726715063428,500.0,0.00024,120]
[338521336,1726715063703,500.0,0.00024,120]
[338521337,1726715065254,1239.9,0.00024,120]
[338521338,1726715065804,500.0,0.00024,120]
[338521339,1726715066071,500.0,0.00024,120]
[338521340,1726715066321,500.0,0.00024,120]
[338521341,1726715066440,500.0,0.00024,120]
[338521342,1726715067485,500.0,0.00024,120]
[338521343,1726715068090,500.0,0.00024,120]
[338521344,1726715068324,267.85151174,0.00024,120]
[338521345,1726715068399,500.0,0.00024,120]
[338521346,1726715070109,622.41,0.00024,120]
[338521347,1726715070219,1624.54,0.00024,120]
[338521348,1726715070671,500.0,0.00024,120]
[338521349,1726715070724,500.0,0.00024,120]
[338521350,1726715070777,500.0,0.00024,120]
[338521351,1726715071959,500.0,0.00024,120]
[338521352,1726715073289,915.13,0.00024,120]
[338521353,1726715075245,500.0,0.00024,120]
[338521354,1726715075831,1081.65,0.00024,120]
[338521355,1726715075903,500.0,0.00024,120]
[338521356,1726715076454,952.34,0.00024,120]
[338521357,1726715076786,500.0,0.00024,120]
[338521358,1726715078207,500.0,0.00024,120]
[338521359,1726715078343,950.23,0.00024,120]
[338521360,1726715078501,1102.56,0.00024,120]
[338521361,1726715079154,1186.79,0.00024,120]
[338521362,1726715079334,500.0,0.00024,120]
[338521363,1726715079401,500.0,0.00024,120]
[338521364,1726715080931,500.0,0.00024,120]
[338521365,1726715082176,500.0,0.00024,120]
[338521366,1726715085356,515.98,0.00024,120]
[338521367,1726715085596,500.0,0.00024,120]
[338521368,1726715085943,500.0,0.00024,120]
[338521369,1726715086243,500.0,0.00024,120]
[338521370,1726715086398,13814.48,0.00024,120]
[338521371,1726715086862,500.0,0.00024,120]
[338521372,1726715087064,2455.05,0.00024,120]
[338521373,1726715087307,849.63,0.00024,120]
[338521374,1726715087622,500.0,0.00024,120]
[338521375,1726715087939,4882.1,0.00024,120]
[338521376,1726715088359,500.0,0.00024,120]
[338521377,1726715088905,1197.29,0.00024,120]
[338521378,1726715089563,500.0,0.00024,120]
[338521379,1726715089621,500.0,0.00024,120]
[338521380,1726715091444,500.0,0.00024,120]
[338521381,1726715092421,500.0,0.00024,120]
[338521382,1726715094053,500.0,0.00024,120]
[338521383,1726715094243,500.0,0.00024,120]
[338521384,1726715094384,500.0,0.00024,120]
[338521385,1726715094630,500.0,0.00024,120]
[338521386,1726715094770,552.59411402,0.00024,120]
[338521387,1726715096628,500.0,0.00024,120]
[338521388,1726715096712,1024.63,0.00024,120]
[338521389,1726715097354,500.0,0.00024,120]
[338521390,1726715098786,1131.69,0.00024,120]
[338521391,1726715100528,912.56,0.00024,120]
[338521392,1726715101447,907.57,0.00024,120]
[338521393,1726715101546,1449.11,0.00024,120]
[338521394,1726715101599,500.0,0.00024,120]
[338521395,1726715101850,658.1,0.00024,120]
[338521396,1726715102281,500.0,0.00024,120]
[338521397,1726715102820,500.0,0.00024,120]
[338521398,1726715104882,500.0,0.00024,120]
[338521399,1726715104979,500.0,0.00024,120]
[338521400,1726715105039,687.47,0.00024,120]
[338521401,1726715105464,500.0,0.00024,120]
[338521402,1726715106952,1643.57,0.00024,120]
[338521403,1726715107073,899.39,0.00024,120]
[338521404,1726715107616,500.0,0.00024,120]
[338521405,1726715108362,1049.47,0.00024,120]
[338521406,1726715108622,500.0,0.00024,120]
[338521407,1726715110227,500.0,0.00024,120]
[338521409,1726715110613,500.0,0.00024,120]
[338521410,1726715111451,500.0,0.00024,120]
[338521411,1726715112845,5948.43,0.00024,120]
[338521412,1726715113501,500.0,0.00024,120]
[338521413,1726715113565,500.0,0.00024,120]
[338521414,1726715113629,500.0,0.00024,120]
[338521415,1726715114604,500.0,0.00024,120]
[338521417,1726715115902,500.0,0.00024,120]
[338521418,1726715116178,500.0,0.00024,120]
[338521419,1726715116236,500.0,0.00024,120]
[338521420,1726715116708,1483.66,0.00024,120]
[338521421,1726715117155,824.65,0.00024,120]
[338521422,1726715117850,500.0,0.00024,120]
[338521423,1726715117960,1712.08,0.00024,120]
[338521424,1726715118888,1040.55,0.00024,120]
[338521425,1726715120500,1098.41,0.00024,120]
[338521426,1726715121549,363.92165639,0.00024,120]
[338521427,1726715121927,935.96,0.00024,120]
[338521428,1726715122002,646.78795088,0.00024,120]
[338521429,1726715123365,509.81224183,0.00024,120]
[338521430,1726715123969,500.0,0.00024,120]
[338521431,1726715124736,628.46,0.00024,120]
[338521432,1726715124986,505.35506783,0.00024,120]
[338521433,1726715125729,532.7391303,0.00024,120]
[338521434,1726715125928,500.0,0.00024,120]
[338521435,1726715126491,500.0,0.00024,120]
[338521436,1726715126774,500.0,0.00024,120]
[338521437,1726715127143,3000.6,0.00024,120]
[338521438,1726715128093,500.0,0.00024,120]
[338521439,1726715129169,1810.31,0.00024,120]
[338521440,1726715131560,1263.48,0.00024,120]
[338521441,1726715132321,500.0,0.00024,120]
[338521442,1726715132391,500.0,0.00024,120]
[338521443,1726715132764,500.0,0.00024,120]
[338521444,1726715133837,500.0,0.00024,120]
[338521445,1726715134088,500.0,0.00024,120]
[338521446,1726715135371,500.0,0.00024,120]
[338521447,1726715136380,500.0,0.00024,120]
[338521448,1726715137297,500.0,0.00024,120]
[338521449,1726715137850,504.23956162,0.00024,120]
[338521450,1726715138078,1871.91,0.00024,120]
[338521451,1726715138401,517.12,0.00024,120]
[338521452,1726715138648,500.0,0.00024,120]
[338521453,1726715139545,500.0,0.00024,120]
[338521454,1726715139870,500.0,0.00024,120]
[338521455,1726715140095,1223.42,0.00024,120]
[338521456,1726715140422,1228.44,0.00024,120]
[338521457,1726715141206,721.54,0.00024,120]
[338521458,1726715141453,500.0,0.00024,120]
[338521459,1726715142453,500.0,0.00024,120]
[338521460,1726715142979,1095.47,0.00024,120]
[338521461,1726715143041,1512.93,0.00024,120]
[338521462,1726715144473,500.0,0.00024,120]
[338521463,1726715145347,500.0,0.00024,120]
[338521464,1726715146994,453.75893707,0.00024,120]
[338521465,1726715147064,957.03,0.00024,120]
[338521466,1726715147131,500.0,0.00024,120]
[338521467,1726715148184,500.0,0.00024,120]
[338521468,1726715148535,1065.33,0.00024,120]
[338521469,1726715148790,500.0,0.00024,120]
[338521470,1726715149034,1514.14,0.00024,120]
[338521471,1726715151070,500.0,0.00024,120]
[338521472,1726715151234,1047.39,0.00024,120]
[338521473,1726715154037,500.0,0.00024,120]
[338521474,1726715155075,500.0,0.00024,120]
[338521475,1726715155738,1064.21,0.00024,120]
[338521476,1726715156119,500.0,0.00024,120]
[338521477,1726715156748,1472.2,0.00024,120]
[338521478,1726715157526,500.0,0.00024,120]
[338521479,1726715157635,852.5,0.00024,120]
[338521480,1726715157781,500.0,0.00024,120]
[338521481,1726715158105,500.0,0.00024,120]
[338521482,1726715160593,500.0,0.00024,120]
[338521483,1726715160763,500.0,0.00024,120]
[338521484,1726715161148,500.0,0.00024,120]
[338521485,1726715161445,500.0,0.00024,120]
[338521486,1726715162084,500.0,0.00024,120]
[338521487,1726715162416,508.27513662,0.00024,120]
[338521488,1726715162681,606.05,0.00024,120]
[338521489,1726715163094,462.56,0.00024,120]
[338521490,1726715163478,975.17,0.00024,120]
[338521491,1726715164406,545.74831346,0.00024,120]
[338521492,1726715166008,500.0,0.00024,120]
[338521493,1726715166187,755.8,0.00024,120]
[338521494,1726715166341,1106.42,0.00024,120]
[338521495,1726715166827,500.0,0.00024,120]
[338521496,1726715168103,1062.69,0.00024,120]
[338521497,1726715170307,500.0,0.00024,120]
[338521498,1726715171192,500.0,0.00024,120]
[338521499,1726715171270,825.03,0.00024,120]
[338521500,1726715172589,500.0,0.00024,120]
[338521501,1726715172652,876.55,0.00024,120]
[338521502,1726715173060,501.55387123,0.00024,120]
[338521503,1726715173195,539.89,0.00024,120]
[338521504,1726715173279,500.0,0.00024,120]
[338521505,1726715173811,1080.78,0.00024,120]
[338521506,1726715174264,500.0,0.00024,120]
[338521507,1726715178578,500.0,0.00024,120]
[338521508,1726715178660,500.0,0.00024,120]
[338521509,1726715178759,500.0,0.00024,120]
[338521510,1726715180571,500.0,0.00024,120]
[338521511,1726715181213,500.0,0.00024,120]
[338521512,1726715181626,500.0,0.00024,120]
[338521513,1726715181862,1032.69,0.00024,120]
[338521514,1726715182668,1191.64,0.00024,120]
[338521515,1726715182746,1086.96,0.00024,120]
[338521516,1726715182916,500.0,0.00024,120]
[338521517,1726715183031,1018.21,0.00024,120]
[338521518,1726715183514,500.0,0.00024,120]
[338521519,1726715183798,500.0,0.00024,120]
[338521520,1726715185714,1290.91,0.00024,120]
[338521521,1726715186114,617.58,0.00024,120]
[338521522,1726715186548,500.0,0.00024,120]
[338521523,1726715186624,920.87,0.00024,120]
[338521524,1726715186805,647.7,0.00024,120]
[338521525,1726715188273,1538.13,0.00024,120]
[338521526,1726715189483,500.0,0.00024,120]
[338521527,1726715191043,500.0,0.00024,120]
[338521528,1726715191941,596.03560873,0.00024,120]
[338521529,1726715192124,1002.7,0.00024,120]
[338521530,1726715193414,1202.94,0.00024,120]
[338521531,1726715193511,500.0,0.00024,120]
[338521532,1726715193862,500.0,0.00024,120]
[338521533,1726715195654,450.74859761,0.00024,120]
[338521534,1726715196419,802.66,0.00024,120]
[338521535,1726715197088,1077.9,0.00024,120]
[338521536,1726715197159,500.0,0.00024,120]
[338521537,1726715197217,500.0,0.00024,120]
[338521538,1726715200117,680.67,0.00024,120]
[338521539,1726715200861,500.0,0.00024,120]
[338521540,1726715201111,500.0,0.00024,120]
[338521541,1726715201214,500.0,0.00024,120]
[338521542,1726715201322,922.52,0.00024,120]
[338521543,1726715202283,3080.3,0.00024,120]
[338521544,1726715202361,869.71,0.00024,120]
[338521545,1726715202785,500.0,0.00024,120]
[338521546,1726715204845,500.0,0.00024,120]
[338521547,1726715205369,792.28,0.00024,120]
[338521548,1726715205641,500.0,0.00024,120]
[338521549,1726715205966,500.0,0.00024,120]
[338521550,1726715206275,759.24,0.00024,120]
[338521551,1726715207092,2158.78,0.00024,120]
[338521552,1726715207630,500.0,0.00024,120]
[338521553,1726715209246,760.38,0.00024,120]
[338521554,1726715210081,500.0,0.00024,120]
[338521555,1726715211885,779.67,0.00024,120]
[338521556,1726715211974,1127.39,0.00024,120]
[338521557,1726715212658,624.09,0.00024,120]
[338521558,1726715213570,703.48,0.00024,120]
[338521559,1726715214089,500.0,0.00024,120]
[338521560,1726715214944,1233.33,0.00024,120]
[338521561,1726715215820,712.3,0.00024,120]
[338521562,1726715215896,1071.94,0.00024,120]
[338521563,1726715215956,500.0,0.00024,120]
[338521564,1726715216018,545.17180421,0.00024,120]
[338521565,1726715217839,548.36475569,0.00024,120]
[338521566,1726715218013,500.0,0.00024,120]
[338521567,1726715219106,500.0,0.00024,120]
[338521568,1726715219968,1745.23,0.00024,120]
[338521569,1726715221023,500.0,0.00024,120]
[338521570,1726715222370,508.47,0.00024,120]
[338521571,1726715222791,536.85,0.00024,120]
[338521572,1726715222933,340.69206909,0.00024,120]
[338521573,1726715223039,761.43,0.00024,120]
[338521574,1726715223183,500.0,0.00024,120]
[338521575,1726715223275,1017.26,0.00024,120]
[338521576,1726715223527,591.82,0.00024,120]
[338521577,1726715223933,500.0,0.00024,120]
[338521578,1726715224137,503.68,0.00024,120]
[338521579,1726715224974,1099.14,0.00024,120]
[338521580,1726715225909,500.0,0.00024,120]
[338521581,1726715226534,958.17,0.00024,120]
[338521582,1726715226635,510.37928177,0.00024,120]
[338521583,1726715228553,539.16056991,0.00024,120]
[338521584,1726715229256,667.83,0.00024,120]
[338521585,1726715231725,1069.93,0.00024,120]
[338521586,1726715231808,500.0,0.00024,120]
[338521587,1726715233388,500.0,0.00024,120]
[338521588,1726715233742,500.0,0.00024,120]
[338521589,1726715234056,371.28494333,0.00024,120]
[338521590,1726715234732,500.0,0.00024,120]
[338521591,1726715235982,500.0,0.00024,120]
[338521592,1726715238909,500.0,0.00024,120]
[338521593,1726715241428,500.0,0.00024,120]
[338521594,1726715241696,500.0,0.00024,120]
[338521595,1726715243229,500.0,0.00024,120]
[338521596,1726715243770,1006.37,0.00024,120]
[338521597,1726715243839,701.31,0.00024,120]
[338521598,1726715244389,1702.75,0.00024,120]
[338521599,1726715244503,765.5,0.00024,120]
[338521600,1726715245539,1061.89,0.00024,120]
[338521601,1726715246052,935.61,0.00024,120]
[338521602,1726715246697,2325.97,0.00024,120]
[338521603,1726715247675,500.0,0.00024,120]
[338521604,1726715248030,2600.39,0.00024,120]
[338521605,1726715248390,500.0,0.00024,120]
[338521606,1726715250388,500.0,0.00024,120]
[338521607,1726715251025,500.0,0.00024,120]
[338521608,1726715252317,611.29,0.00024,120]
[338521609,1726715252414,500.0,0.00024,120]
[338521610,1726715253812,500.0,0.00024,120]
[338521611,1726715254105,500.0,0.00024,120]
[338521612,1726715254163,2327.13,0.00024,120]
[338521613,1726715254647,1978.68,0.00024,120]
[338521614,1726715255230,1000.0,0.00024,120]
[338521615,1726715255574,1126.76,0.00024,120]
[338521616,1726715257104,4035.99,0.00024,120]
[338521617,1726715258218,1014.17,0.00024,120]
[338521618,1726715258485,1354.98,0.00024,120]
[338521619,1726715259583,606.48,0.00024,120]
[338521620,1726715262193,615.58,0.00024,120]
[338521621,1726715263545,500.0,0.00024,120]
[338521622,1726715263860,1081.93,0.00024,120]
[338521623,1726715264040,500.0,0.00024,120]
[338521624,1726715265484,957.02,0.00024,120]
[338521625,1726715265615,500.0,0.00024,120]
[338521626,1726715266711,500.0,0.00024,120]
[338521627,1726715270612,500.0,0.00024,120]
[338521628,1726715271421,500.0,0.00024,120]
[338521629,1726715272085,673.75,0.00024,120]
[338521630,1726715273200,3326.85,0.00024,120]
[338521631,1726715273547,500.0,0.00024,120]
[338521632,1726715273891,1069.62,0.00024,120]
[338521633,1726715273950,986.55,0.00024,120]
[338521634,1726715274587,500.0,0.00024,120]
[338521635,1726715276306,1009.37,0.00024,120]
[338521636,1726715277872,500.0,0.00024,120]
[338521637,1726715278934,986.42,0.00024,120]
[338521638,1726715279503,1038.41,0.00024,120]
[338521639,1726715279841,500.0,0.00024,120]
[338521640,1726715280202,500.0,0.00024,120]
[338521641,1726715280519,1084.21,0.00024,120]
[338521642,1726715280584,501.23681745,0.00024,120]
[338521643,1726715280654,753.76,0.00024,120]
[338521644,1726715280902,500.0,0.00024,120]
[338521645,1726715281843,500.0,0.00024,120]
[338521646,1726715282330,500.0,0.00024,120]
[338521647,1726715285861,1072.43,0.00024,120]
[338521648,1726715287600,500.0,0.00024,120]
[338521649,1726715288734,500.0,0.00024,120]
[338521650,1726715289529,500.0,0.00024,120]
[338521651,1726715289659,500.0,0.00024,120]
[338521652,1726715290051,500.0,0.00024,120]
[338521653,1726715292069,500.0,0.00024,120]
[338521654,1726715294029,1507.76,0.00024,120]
[338521655,1726715294113,1022.19,0.00024,120]
[338521656,1726715294203,535.17,0.00024,120]
[338521657,1726715294673,1220.52,0.00024,120]
[338521658,1726715295566,995.06,0.00024,120]
[338521659,1726715296824,500.0,0.00024,120]
[338521660,1726715297299,500.0,0.00024,120]
[338521661,1726715297776,653.9,0.00024,120]
[338521662,1726715298599,500.0,0.00024,120]
[338521663,1726715298675,500.0,0.00024,120]
[338521664,1726715298917,500.0,0.00024,120]
[338521665,1726715301280,339.71987144,0.00024,120]
[338521666,1726715302793,1529.0,0.00024,120]